Cogmind - Beta 14 @@@ ROGUE MODE // 2025.03.17 @ 01:29:52 Player: Zaros426 Result: Destroyed by S-43 Plague with Heavy Machine Gun Performance ------------- Evolutions (9) 4500 Regions Visited (32) 6400 Robots Destroyed (486) 2430 Value Destroyed (19712) 19712 Prototype IDs (77) 1540 Alien Tech Used (0) 0 Bonus (11650) 11650 TOTAL SCORE: 46232 Bonus ------- High Alert Combat Kills 3552 Follower Combat Kills 2903 Entered Garrisons 1400 Used RIF Installer 3500 Aligned with FarCom 300 Met Data Miner 300 Friendly Fire -305 Cogmind --------- Core Integrity 0/1600 Matter 63/300 Energy 152/350 System Corruption 0% Temperature Cool (0) Movement Treading (173) Location -1/Access Parts ------- > --- POWER (3) -------- Quantum Reactor > --- PROPULSION (6) --- Armored Medium Treads Armored Medium Treads Improved Heavy Siege Treads Gyrokinetic Inverter Combat Linear Gravjet > --- UTILITY (10) ----- Enhanced Optical Array Improved Targeting Computer Advanced Target Analyzer Improved Hardlight Generator Authchip [R/Combat] Relay Coupler [NC] (34) Relay Coupler [Sentry] (21) Relay Coupler [Sentry] (5) Relay Coupler [Heavy] (5) Advanced Corruption Screen > --- WEAPON (6) ------- Hypervelocity Railgun > --- INVENTORY (5) ---- Advanced Coolant Injector Advanced Remote Datajack Peak State ------------ > --- POWER ------------ Light Quantum Reactor Light Quantum Reactor > --- PROPULSION ------- Biometal Heavy Treads Biometal Heavy Treads Biometal Heavy Treads > --- UTILITY ---------- Advanced Heat Sink Advanced Coolant Injector Huge Storage Unit Enhanced Optical Array Advanced Targeting Computer Advanced Force Booster Centrium Medium Armor Plating Improved Hardlight Generator Experimental System Shield > --- WEAPON ----------- Enhanced Quantum Rifle Enhanced Quantum Rifle Heavy Machine Gun Heavy Machine Gun Heavy Machine Gun Heavy Machine Gun > --- INVENTORY -------- Light Quantum Reactor Medium Treads Medium Treads Medium Treads Improved Heavy Treads Advanced Heat Sink Advanced Heat Sink Advanced Heat Sink Advanced Coolant Injector Advanced Target Analyzer Makeshift ECM Suite Advanced Reaction Control System Heavy Armor Plating Hacking Suite Advanced Corruption Screen High-powered Tractor Beam Gamma Rifle Compact HERF Cannon Matter Neutralizer Heavy Machine Gun Railgun Advanced Remote Datajack Enhanced Force Lance [Rating: 176] Favorites ----------- Power Cooled Ion Engine Engine Cooled Ion Engine Power Core Enhanced Fission Core Reactor Light Quantum Reactor Propulsion Improved Heavy Treads Treads Improved Heavy Treads Leg Flexi-carbon Leg Wheel Armored Wheel Hover Unit Antigrav System Flight Unit Q-thruster Utility Huge Storage Unit Device Advanced Coolant Injector Storage Huge Storage Unit Processor Advanced Targeting Computer Hackware Improved Hacking Suite Protection Layered Heavy Armor Plating Weapon Enhanced Autogun Energy Gun Medium Laser Energy Cannon Matter Neutralizer Ballistic Gun Enhanced Autogun Ballistic Cannon Linear Accelerator Launcher Mini Smartbomb Launcher Special Weapon Improved Remote Datajack Impact Weapon Heavy Mace Slashing Weapon Katana Piercing Weapon Enhanced Force Lance Special Melee Weapon Datajack Build | -11 -10 -10 -9 -9 -9 -8 -8 -8 -8 -8 -7 -7 -7 -7 -6 -6 -6 -6 -6 -6 -5 -5 -5 -4 -4 -4 -3 -2 -2 -1 -1 -1 ------- Run | Yrd Mat Min Mat Min Exi Min Mat Gar Mat Gar Fac Gar Fac Gar Fac Was Fac Low Low Dat Pro Fac Gar Fac Upp Upp Res Res Gar Acc Gar Acc Slots Evolved 18 | . . . 2 . . . 2 . . . 2 . . . 2 . . . . . . 2 . 2 . . 2 2 . 2 . . Power 2 | . . . . . . . . . . . . . . . . . . . . . . . . . . . . 1 . 1 . . Propulsion 4 | . . . . . . . 1 . . . 1 . . . . . . . . . . 2 . . . . . . . . . . Utility 8 | . . . 1 . . . . . . . 1 . . . 2 . . . . . . . . 1 . . 1 1 . 1 . . Weapon 4 | . . . 1 . . . 1 . . . . . . . . . . . . . . . . 1 . . 1 . . . . . Parts Attached 652 | 6 12 5 64 16 4 . 41 31 29 24 11 10 2 11 11 11 . 2 3 1 6 33 43 33 9 15 16 78 29 . 49 47 Power 45 | 1 . 1 8 1 . . . 2 1 1 . . . 1 1 . . . 1 . . 2 1 . . 2 . 6 1 . 8 7 Engine 20 | 1 . 1 8 1 . . . 2 1 1 . . . 1 1 . . . 1 . . . . . . . . 2 . . . . Core 6 | . . . . . . . . . . . . . . . . . . . . . . 1 1 . . 1 . . . . 2 1 Reactor 19 | . . . . . . . . . . . . . . . . . . . . . . 1 . . . 1 . 4 1 . 6 6 Propulsion 128 | 2 . 2 17 4 . . 16 9 6 9 6 2 . . 1 3 . . . . 1 11 3 2 1 3 1 16 . . 5 8 Treads 83 | 2 . 2 10 2 . . 7 5 6 9 2 2 . . 1 2 . . . . 1 10 3 2 1 1 . 7 . . 5 3 Leg 5 | . . . . . . . 1 . . . 1 . . . . . . . . . . . . . . 2 1 . . . . . Wheel 25 | . . . 6 2 . . 7 3 . . 2 . . . . . . . . . . . . . . . . 2 . . . 3 Hover 8 | . . . . . . . 1 . . . . . . . . . . . . . . . . . . . . 5 . . . 2 Flight 7 | . . . 1 . . . . 1 . . 1 . . . . 1 . . . . . 1 . . . . . 2 . . . . Utility 187 | 1 6 . 14 4 . . 9 3 1 7 3 4 1 3 4 6 . . 1 . 3 5 15 16 2 5 8 35 9 . 11 11 Device 93 | . . . 3 1 . . 3 2 . 5 1 3 . 1 . 2 . . 1 . 2 3 10 13 2 4 4 21 3 . 6 3 Storage 11 | 1 3 . 2 . . . . . . . . . . . . . . . . . . . . . . . 1 4 . . . . Processor 21 | . . . 1 1 . . 3 1 . . 2 . 1 . . 1 . . . . . . 1 1 . . 1 4 2 . 1 1 Hackware 28 | . . . . . . . 1 . . . . 1 . 2 2 . . . . . . 2 1 2 . . 2 1 3 . 4 7 Protection 34 | . 3 . 8 2 . . 2 . 1 2 . . . . 2 3 . . . . 1 . 3 . . 1 . 5 1 . . . Artifact . | . . . . . . . . . . . . . . . . . . . . . . . . . . . . . . . . . Weapon 292 | 2 6 2 25 7 4 . 16 17 21 7 2 4 1 7 5 2 . 2 1 1 2 15 24 15 6 5 7 21 19 . 25 21 Energy Gun 56 | 2 4 1 5 1 . . 1 2 6 2 . 2 1 . 2 . . . . . 1 5 1 4 1 2 1 8 2 . . 2 Energy Cannon 9 | . . . 2 . . . . . 1 . . . . . . . . 1 . . . . 1 . . . 2 1 . . . 1 Ballistic Gun 149 | . 1 1 12 3 3 . 9 10 10 3 2 2 . 4 2 1 . 1 1 . 1 8 18 8 1 2 . 5 12 . 19 10 Ballistic Cannon 5 | . . . . . . . . . 2 . . . . . . 1 . . . . . . . . . . 2 . . . . . Launcher 10 | . . . 1 1 . . 1 . 2 . . . . . 1 . . . . . . 1 . . 1 1 1 . . . . . Special Weapon 31 | . 1 . 2 . . . . 1 . . . . . 3 . . . . . 1 . 1 4 3 2 . 1 . 3 . 6 3 Impact Weapon 10 | . . . . . . . 5 4 . . . . . . . . . . . . . . . . 1 . . . . . . . Slashing Weapon 10 | . . . 3 2 . . . . . 2 . . . . . . . . . . . . . . . . . 3 . . . . Piercing Weapon 11 | . . . . . . . . . . . . . . . . . . . . . . . . . . . . 4 2 . . 5 Special Melee Weapon 1 | . . . . . 1 . . . . . . . . . . . . . . . . . . . . . . . . . . . Unidentified Prototypes 22 | . . . 6 1 . . 2 . 3 . . 1 1 . 1 . . . . . . 3 . 1 . . . 3 . . . . Parts Lost 115 | . . 3 4 2 . . . 5 6 2 . . . . . . . . 1 . 1 1 2 6 . 12 7 8 5 . 21 29 Power 13 | . . . 1 . . . . 1 . . . . . . . . . . . . . . . . . 1 . . 1 . 3 6 Propulsion 30 | . . 2 2 . . . . 2 1 2 . . . . . . . . . . . . . 2 . 4 2 2 . . 6 5 Utility 24 | . . . 1 . . . . 1 1 . . . . . . . . . . . . 1 . . . 4 3 3 2 . 5 3 Weapon 48 | . . 1 . 2 . . . 1 4 . . . . . . . . . 1 . 1 . 2 4 . 3 2 3 2 . 7 15 Highest Loss Streak 25 | . . 2 2 1 . . . 3 3 2 . . . . . . . . 1 . 1 1 1 3 . 6 7 2 3 . 18 25 To Critical Strikes . | . . . . . . . . . . . . . . . . . . . . . . . . . . . . . . . . . Average Slot Usage (%) 85 | . 99 98 99 99 79 100 99 97 99 89 95 94 84 83 79 85 86 86 86 86 85 87 78 75 66 63 47 73 81 72 76 68 Engine 5 | . 14 14 10 10 11 11 9 8 9 8 7 7 7 7 6 6 6 6 6 6 6 . . . . . . . . . . . Core 1 | . . . . . . . . . . . . . . . . . . . . . . 1 4 5 5 3 . . . . 2 . Reactor 1 | . . . . . . . . . . . . . . . . . . . . . . 2 . . . . . 5 5 4 7 8 Treads 15 | . 28 28 9 8 . . 3 17 27 23 18 25 15 15 12 19 20 20 20 20 20 28 20 14 13 9 3 8 13 12 12 6 Wheel 4 | . . . 12 13 22 22 23 9 . . 4 . . . . . . . . . . . . . . . . 1 . . . 4 Device 6 | . . . 4 . . . 5 9 4 7 15 21 10 8 4 . . . 4 6 6 1 8 9 9 12 4 11 10 8 10 7 Storage 7 | . 14 14 11 11 11 11 9 9 9 9 7 7 7 7 6 6 6 6 6 6 6 5 5 5 5 5 3 3 4 4 4 2 Processor 6 | . . . 7 11 11 11 9 9 9 6 5 . 4 7 6 6 6 6 6 6 6 5 5 9 1 . . 11 11 12 12 12 Hackware 3 | . . . . . . . . . . . . . 7 5 7 13 13 13 8 6 6 8 . 1 5 4 3 2 4 4 2 8 Protection 5 | . 13 14 9 11 11 11 2 . 4 2 . . . . 6 5 6 6 6 6 6 5 4 5 5 2 3 3 3 4 1 . Energy Gun 2 | . 18 14 3 . . . . . 5 2 3 5 5 1 . . . . . . . 2 . . 1 . 2 8 1 . . . Ballistic Gun 21 | . 8 12 26 25 2 33 34 30 28 29 25 24 24 25 25 26 26 26 26 21 25 20 20 23 12 18 4 4 21 20 23 15 Peak Build Rating 176 | 6 10 11 25 30 27 27 35 43 48 47 51 74 73 73 84 81 81 81 84 84 85 100 115 126 103 102 108 176 168 150 172 141 Average Rating 70 | 5 8 10 19 23 20 27 32 33 42 41 46 56 71 71 79 80 81 80 82 83 83 97 105 116 93 84 87 123 154 150 140 107 On Entrance 65 | . 6 10 10 22 24 27 27 34 39 46 44 47 71 71 73 75 81 81 81 84 83 85 100 113 79 99 69 7 167 150 150 120 Naked Turns . | . . . . . . . . . . . . . . . . . . . . . . . . . . . . . . . . . Heaviest Build 180 | 13 34 35 105 105 105 105 108 109 116 111 105 106 103 110 126 125 125 125 126 126 132 136 146 151 160 158 178 166 163 153 180 174 Greatest Support 225 | 40 40 40 40 40 24 24 69 69 84 84 90 150 150 150 150 135 135 135 135 135 135 185 225 225 133 133 75 225 225 225 225 103 Greatest Overweight (x) 26 | 3 . . 8 4 4 4 4 8 1 26 10 1 . . 1 1 . . . . 1 . 1 1 1 6 2 2 . . 1 6 Average Overweight (x) 1 | . . . 3 3 4 4 2 4 1 1 6 . . . . . . . . . . . . . 1 1 . . . . . 1 Largest Inventory Capacity 25 | 8 15 15 25 25 25 25 25 25 25 25 25 25 25 25 25 25 25 25 25 25 25 25 25 25 25 25 25 25 25 25 25 25 Average Capacity 23 | 7 12 15 21 25 25 25 25 25 25 25 25 25 25 25 25 25 25 25 25 25 25 25 25 25 25 25 23 15 25 25 25 19 Most Carried 25 | 4 15 15 25 25 25 25 25 25 25 25 25 25 25 25 25 25 25 25 25 24 25 25 25 25 25 25 19 25 25 25 25 24 Average Carried 21 | 2 11 13 19 24 24 25 24 24 24 23 24 24 24 24 23 24 25 24 24 24 24 24 24 23 22 24 16 12 24 25 20 16 Final Capacity 25 | 8 15 15 25 25 25 25 25 25 25 25 25 25 25 25 25 25 25 25 25 25 25 25 25 25 25 25 5 25 25 25 25 5 Final Carried 25 | 4 14 12 25 24 25 25 25 25 25 25 25 25 25 25 25 25 25 25 24 24 24 24 25 21 25 18 5 25 25 25 21 2 Class Distribution -------------------- 19% | Skirmisher 14% | Gunner 13% | Mutant 10% | Scavenger-Tank 7% | Bothacker-Skirmisher 6% | Scavenger-Executioner 5% | Scavenger-Gunner 3% | Hacker-Skirmisher 3% | Tank 3% | Scavenger-Skirmisher 3% | Hacker-Gunner Dominant Class ---------------- Mutant | -10/Materials Mutant | -10/Mines Gunner | -9/Materials Mutant | -9/Mines Mutant | -9/Exiles Skirmisher | -8/Mines Skirmisher | -8/Materials Skirmisher | -8/Garrison Skirmisher | -8/Materials Skirmisher | -8/Garrison Bothacker-Skirmisher | -7/Factory Bothacker-Skirmisher | -7/Garrison Bothacker-Skirmisher | -7/Factory Bothacker-Skirmisher | -7/Garrison Bothacker-Skirmisher | -6/Factory Hacker-Skirmisher | -6/Waste Hacker-Skirmisher | -6/Factory Hacker-Gunner | -6/Lower Caves Gunner | -6/Lower Caves Gunner | -6/Data Miner Gunner | -5/Proximity Caves Scavenger-Skirmisher | -5/Factory Scavenger-Tank | -5/Garrison Scavenger-Gunner | -4/Factory Scavenger-Tank | -4/Upper Caves Scavenger-Tank | -4/Upper Caves Scavenger-Executioner | -3/Research Scavenger-Executioner | -2/Research Bothacker-Executioner | -2/Garrison Bothacker-Executioner | -1/Access Scavenger-Executioner | -1/Garrison Botlord-Executioner | -1/Access Resources | -11 -10 -10 -9 -9 -9 -8 -8 -8 -8 -8 -7 -7 -7 -7 -6 -6 -6 -6 -6 -6 -5 -5 -5 -4 -4 -4 -3 -2 -2 -1 -1 -1 ----------- Run | Yrd Mat Min Mat Min Exi Min Mat Gar Mat Gar Fac Gar Fac Gar Fac Was Fac Low Low Dat Pro Fac Gar Fac Upp Upp Res Res Gar Acc Gar Acc Matter Collected 19621 | 230 192 141 1620 455 262 52 1445 699 1233 390 480 249 . 565 37 387 34 105 431 . 374 703 1515 1576 417 485 338 988 1254 . 1847 1117 Remotely 1857 | . . . . . . . . . . . . . . . . . . . . . . . . 933 . 295 . 20 609 . . . Salvage Created 23553 | 30 616 135 2479 395 . 83 1884 804 1634 415 280 689 . 431 . 434 49 75 691 . 340 840 1865 2110 318 595 172 2339 990 . 1174 1686 Parts 1145 | 7 35 14 139 26 . 6 79 57 93 9 13 20 . 15 . 4 2 5 29 . 20 48 90 98 10 15 6 125 47 . 48 85 Haulers Intercepted 25 | . 2 . 6 . . . 5 . 5 . 1 . . . . . . . . . . 3 . 1 . . . 1 . . . 1 Recyclers Shooed 29 | 1 1 2 5 . . . 3 . . . . . . . 1 . . . . . . 1 . 7 . . . 2 . . . 6 Parts Field Recycled . | . . . . . . . . . . . . . . . . . . . . . . . . . . . . . . . . . Retrieved Matter . | . . . . . . . . . . . . . . . . . . . . . . . . . . . . . . . . . Parts Self-Destructed 95 | . . . . . . . . . . . . . . . . . . 5 32 . 19 . . . 13 26 . . . . . . Prevented 3 | . . . . . . . . . . . . . . . . . . . . . 1 . . . 2 . . . . . . . Kills | -11 -10 -10 -9 -9 -9 -8 -8 -8 -8 -8 -7 -7 -7 -7 -6 -6 -6 -6 -6 -6 -5 -5 -5 -4 -4 -4 -3 -2 -2 -1 -1 -1 ------- Run | Yrd Mat Min Mat Min Exi Min Mat Gar Mat Gar Fac Gar Fac Gar Fac Was Fac Low Low Dat Pro Fac Gar Fac Upp Upp Res Res Gar Acc Gar Acc Combat Hostiles Destroyed 347 | . 11 10 39 9 . . 26 23 26 8 1 1 . 7 . . 1 3 11 . 8 6 27 26 5 11 5 26 19 . 22 16 Melee 7 | . . . 1 . . . . . . . . . . . . . . . . . . . . . . . . 1 . . 3 2 Guns 309 | . 11 10 36 7 . . 26 23 15 8 1 1 . 7 . . 1 3 11 . 8 6 27 25 4 6 . 22 19 . 19 13 Cannons 9 | . . . 2 . . . . . 3 . . . . . . . . . . . . . . . . . 1 2 . . . 1 AOE 20 | . . . . 2 . . . . 7 . . . . . . . . . . . . . . 1 1 5 4 . . . . . Classes Destroyed 21 | 1 7 1 2 1 . . 1 2 2 . . . . . . . . . . . 1 . 1 2 . . . . . . . . Worker 42 | . 2 . 10 2 . 1 . . 4 . . . . . . . . . . . . 6 . 3 . . . 5 . . . 9 Builder 13 | . . . 2 2 . . . . 3 . . . . . . . . . . . . 1 . 2 . . . 2 . . . 1 Tunneler 8 | 2 1 . . 2 . . 1 . . . . . . . . . . . . . . . . 1 . . . . . . . 1 Hauler 25 | . 2 . 6 . . . 5 . 5 . 1 . . . . . . . . . . 3 . 1 . . . 1 . . . 1 Recycler 26 | . 1 . 8 . . 1 4 . 1 . 1 . . . . . . . . . . . . 4 . . . 3 . . . 3 Mechanic 2 | . . . . . . . . . 1 . 1 . . . . . . . . . . . . . . . . . . . . . Operator 6 | . 1 . 1 . . . 2 . 1 . . . . . . . . . . . . . . . . . . 1 . . . . Watcher 16 | . 1 . 3 . . . 5 1 2 . . . . . . . . . . . . 1 . . . . . 2 . . . 1 Swarmer 95 | . 3 6 12 . . . 6 9 3 . . 1 . 3 . . . 3 1 . 5 . 4 5 . . . 10 8 . 11 5 Cutter 8 | . . . . . . . . . . . . . . . . . . . . . . . 6 . . . . . 2 . . . Saboteur 1 | . . . . . . . . . . . . . . . . . . . . . . . . 1 . . . . . . . . Grunt 131 | . 8 2 18 8 . . 11 10 18 5 . . . 4 . . . . 7 . 1 . 3 10 2 10 1 4 1 . 5 3 Brawler 4 | . . . . . . . . 1 . 1 . . . . . . . . . . . . . . 1 1 . . . . . . Duelist 6 | . . . . 1 . . 1 . 1 . . . . 1 . . . . 2 . . . . . . . . . . . . . Protector 1 | . . . . . . . . . 1 . . . . . . . . . . . . . . . . . . . . . . . Sentry 35 | . . . 9 . . . 6 . 2 1 1 . . . . . . . 1 . 1 2 7 1 . . . 2 2 . . . Demolisher 2 | . . 2 . . . . . . . . . . . . . . . . . . . . . . . . . . . . . . Specialist 2 | . . . . . . . . . . . . . . . . . . . . . . . . 1 . . . . 1 . . . Hunter 25 | . . . . . . . 2 . 1 1 . . . . . . 1 . . . . 2 4 4 2 . 1 2 3 . 1 1 Programmer 34 | . . . . . . . . 3 . . . . . . . . . . . . . 2 1 4 . . 3 8 2 . 4 7 Behemoth 4 | . . . . . . . . . . . . . . . . . . . . . 1 . 2 . . . . . . . 1 . Best Kill Streak 11 | 1 4 4 8 3 . 1 9 6 11 5 2 1 . 3 . . 1 3 4 . 2 5 5 8 3 5 4 7 5 . 7 11 Combat Bots Only 8 | . 2 4 6 3 . . 8 6 7 5 1 1 . 3 . . 1 3 4 . 2 2 5 5 3 5 4 7 5 . 7 6 Max Kills in Single Turn 5 | 1 1 1 2 1 . 1 2 2 5 1 1 1 . 2 . . 1 2 1 . 1 3 2 3 1 3 2 2 2 . 3 2 Gunslinging 1 | . . . 1 . . . 1 1 . . . . . . . . . 1 . . . 1 . 1 . . . . 1 . 1 1 Exploded 3 | . . . . 1 . . . . 3 . . . . . . . . . . . . . . 1 1 2 2 . . . . . Melee 1 | . . . 1 . . . . . . . . . . . . . . . . . . . . . . . . 1 . . 1 1 Uniques/NPCs Destroyed . | . . . . . . . . . . . . . . . . . . . . . . . . . . . . . . . . . Combat | -11 -10 -10 -9 -9 -9 -8 -8 -8 -8 -8 -7 -7 -7 -7 -6 -6 -6 -6 -6 -6 -5 -5 -5 -4 -4 -4 -3 -2 -2 -1 -1 -1 -------- Run | Yrd Mat Min Mat Min Exi Min Mat Gar Mat Gar Fac Gar Fac Gar Fac Was Fac Low Low Dat Pro Fac Gar Fac Upp Upp Res Res Gar Acc Gar Acc Hostile Shots Fired 2757 | . 49 43 190 29 . . 77 99 167 68 9 9 . 28 . . . 16 60 . 55 29 167 190 64 136 269 134 134 . 448 287 Missed 766 | . 9 14 52 9 . . 20 24 42 11 3 4 . 7 . . . 3 16 . 13 9 17 57 18 42 102 32 39 . 152 71 Damage Taken 31007 | . 480 469 1848 279 . . 620 801 1433 556 39 78 . 252 . . . 188 623 . 831 426 2344 1946 494 1483 2546 2580 1699 . 4199 4793 Core 4096 | . 88 23 217 21 . . 89 194 130 . . 14 . 29 . . . . 28 . 32 . 128 119 31 64 1037 191 57 . 381 1223 Absorbed by Shields 5435 | . . . . . . . 160 260 348 156 . . . 6 . . . . . . 33 . 1299 258 328 192 . . 528 . 1771 96 Reduced by Siege Mode 615 | . . . . . . . . . . . . . . . . . . 8 24 . 49 . 197 18 . 42 . 23 121 . 85 48 Redirected to Shielding 68 | . 14 . . . . . . . . . . . . . . . . . . . . . . . . . . . 54 . . . Ignored by Resistances 661 | . . . . . . . . . . . . . . . . . . . . . . . . . . . 661 . . . . . Regen/Repaired (Parts) 1626 | . . . 141 . . . 226 . . . 153 . . . . . . . . . . 442 . 664 . . . . . . . . Core Remaining (%) 67 | 100 . 55 . . . 40 . . . 24 . . . 93 . . . . . . 92 . 87 . . 81 20 . 82 . . . Volleys Fired 1195 | 5 79 28 127 20 . 2 80 53 90 27 12 92 . 38 2 11 2 5 26 1 23 34 88 72 16 23 13 49 54 . 66 57 Largest 6 | 2 2 2 3 3 . 3 4 4 4 4 4 4 . 4 4 4 4 4 4 1 4 4 4 5 4 5 4 6 6 . 6 6 Hottest 420 | 90 100 85 141 76 . 69 94 94 225 225 225 225 . 130 225 110 110 110 118 7 148 225 176 225 175 199 342 420 250 . 205 346 Shots Fired 3756 | 10 156 48 364 55 1 7 316 164 257 86 39 101 . 101 5 44 8 20 95 1 89 100 280 284 43 81 17 205 221 . 314 244 Gun 3597 | 10 154 48 344 52 1 7 316 154 240 86 39 101 . 95 5 44 8 20 95 . 89 99 263 280 38 78 4 190 211 . 302 224 Cannon 51 | . . . 12 . . . . . 11 . . . . . . . . . . . . . . . . . 8 15 . . . 5 Launcher 22 | . . . 3 3 . . . . 6 . . . . . . . . . . . . . . . 2 3 5 . . . . . Special 86 | . 2 . 5 . . . . 10 . . . . . 6 . . . . . 1 . 1 17 4 3 . . . 10 . 12 15 Kinetic 3025 | . 32 20 262 52 1 7 316 154 204 80 35 13 . 93 4 44 8 20 95 . 87 87 261 265 30 69 6 78 185 . 302 215 Thermal 535 | 10 124 28 99 . . . . . 20 6 4 88 . . 1 . . . . . . 10 2 15 . . 6 87 26 . . 9 Explosive 19 | . . . . 3 . . . . 6 . . . . . . . . . . . . . . . 2 3 5 . . . . . Electromagnetic 98 | . . . 3 . . . . . 27 . . . . 2 . . . . . . 2 2 . . 8 9 . 40 . . . 5 Robot Hit Streak 58 | 3 8 8 16 13 . 2 11 13 14 15 20 38 . 14 10 23 3 12 30 24 54 11 43 20 15 17 5 21 11 . 58 19 Robot Miss Streak 7 | 2 4 3 7 4 . 1 5 2 3 2 3 2 . 4 . 1 2 1 3 . 2 3 4 3 3 5 1 3 4 . 4 6 Penetration Max 2 | . . . . . . . . . . . . . . . . . . . 1 . . 1 1 1 1 1 . 1 . . 2 2 Secondary Targets 79 | . 2 1 11 1 . . 5 8 2 3 . . . 4 . . . 1 5 . 1 2 8 4 1 1 . 5 7 . 4 3 Max Gunslinging Chain 2 | . 1 1 2 1 . . 1 1 1 1 . . . 1 . . . 1 1 . 1 1 1 1 1 1 . 1 1 . 1 2 Shots Hit Robots 2514 | 5 94 28 243 49 6 2 198 121 148 62 21 73 . 70 4 35 5 18 82 1 63 52 205 167 28 59 9 140 137 . 240 149 Core Hits 1051 | 2 34 13 105 26 . 2 80 41 81 16 8 30 . 28 1 5 4 5 26 . 17 32 78 79 24 44 26 70 56 . 65 53 Critical Kills 20 | . . . 1 . . . 1 . . . . . . 1 . . . . . . . 1 2 2 . . . 2 1 . 5 4 Critical Parts Destroyed 51 | . . . . 1 . . 1 1 2 2 . . . 1 . . . 1 1 . 4 2 3 7 . 1 . . 3 . 11 10 Critical Strikes 96 | . 4 2 9 1 . . 2 1 3 2 . . . 2 . 1 . 1 1 . 5 3 6 9 . 1 . 4 4 . 20 15 Burn 14 | . 4 2 8 . . . . . . . . . . . . . . . . . . . . . . . . . . . . . Meltdown 1 | . . . . . . . . . . . . . . . . . . . . . . . . . . . . 1 . . . . Destroy 77 | . . . 1 1 . . 2 1 2 2 . . . 2 . 1 . 1 1 . 5 3 6 9 . 1 . 1 4 . 20 14 Corrupt 2 | . . . . . . . . . 1 . . . . . . . . . . . . . . . . . . 1 . . . . Impale 2 | . . . . . . . . . . . . . . . . . . . . . . . . . . . . 1 . . . 1 Melee Attacks 126 | . . . 8 14 6 . 19 18 . . . . . . . . . . . . . . . . . . . 34 8 . . 19 Impact 37 | . . . . . . . 19 18 . . . . . . . . . . . . . . . . . . . . . . . . Slashing 38 | . . . 8 14 . . . . . . . . . . . . . . . . . . . . . . . 16 . . . . Piercing 45 | . . . . . . . . . . . . . . . . . . . . . . . . . . . . 18 8 . . 19 Sneak Attacks 32 | . . . 1 9 6 . 2 1 . . . . . . . . . . . . . . . . . . . 8 . . . 5 Combat Hostiles . | . . . . . . . . . . . . . . . . . . . . . . . . . . . . . . . . . Follow-up Attacks . | . . . . . . . . . . . . . . . . . . . . . . . . . . . . . . . . . Damage Inflicted 58257 | 59 1213 372 3884 1424 . 35 3169 1871 3468 1017 341 1722 . 863 85 682 72 158 1605 . 1319 1499 4703 5218 791 2059 2276 4789 2872 . 6143 4548 Guns 49239 | 59 1213 372 3482 624 . 35 2979 1758 2365 1017 341 1722 . 863 85 682 72 158 1605 . 1319 1499 4703 4563 418 1350 58 3421 2872 . 6052 3552 Cannons 893 | . . . 187 . . . . . 153 . . . . . . . . . . . . . . . . . 174 291 . . . 88 Explosions 5053 | . . . 85 248 . . . . 950 . . . . . . . . . . . . . . 644 373 709 2044 . . . . . Melee 2942 | . . . 130 552 . . 190 113 . . . . . . . . . . . . . . . . . . . 1077 . . . 880 Ramming 130 | . . . . . . . . . . . . . . . . . . . . . . . . 11 . . . . . . 91 28 Kinetic 42141 | . 229 166 2616 624 . 35 2979 1758 2015 1017 341 111 . 847 85 682 72 158 1605 . 1302 1482 4661 4384 306 1202 102 1375 2501 . 6052 3434 Thermal 6831 | 59 984 206 1053 . . . . . 71 . . 1611 . . . . . . . . . . 42 179 . 155 130 1852 371 . . 118 Explosive 4813 | . . . . 248 . . . . 950 . . . . . . . . . . . . . . 644 373 554 2044 . . . . . Electromagnetic 1400 | . . . 85 . . . . . 432 . . . . 16 . . . . . . 17 17 . . 112 148 . 485 . . . 88 Impact 303 | . . . . . . . 190 113 . . . . . . . . . . . . . . . . . . . . . . . . Slashing 1435 | . . . 130 552 . . . . . . . . . . . . . . . . . . . . . . . 753 . . . . Piercing 1204 | . . . . . . . . . . . . . . . . . . . . . . . . . . . . 324 . . . 880 Highest Corruption 9 | . . . 5 5 5 5 . 1 1 1 . . . . . . . . . . . 2 3 2 2 2 9 2 2 . . . Average Corruption 2 | . . . 5 5 5 5 . 1 1 1 . . . . . . . . . . . 1 2 1 2 2 5 1 2 . . . Corruption Purged . | . . . . . . . . . . . . . . . . . . . . . . . . . . . . . . . . . Corruption Blocked 4 | . . . . . . . . . . . . . . . . . . . . . . . . . . . . . . . 1 3 Effects 258 | . . . 61 40 12 5 . 10 18 3 . . . . . . . . . . . 1 18 3 42 15 2 15 13 . . . Message Errors 47 | . . . 10 5 1 . . 3 6 1 . . . . . . . . . . . . 2 2 5 4 . 4 4 . . . Matter Fused 70 | . . . 14 12 5 2 . . 6 1 . . . . . . . . . . . . 4 1 18 2 . 3 2 . . . Heat Flow Errors 33 | . . . 5 7 1 . . 3 3 . . . . . . . . . . . . . 5 . 3 1 1 2 2 . . . Energy Discharges 34 | . . . 7 5 3 1 . 2 2 . . . . . . . . . . . . . 2 . 4 3 1 . 4 . . . Parts Rejected 3 | . . . 3 . . . . . . . . . . . . . . . . . . . . . . . . . . . . . Parts Fused 1 | . . . 1 . . . . . . . . . . . . . . . . . . . . . . . . . . . . . Data Loss (minor) 31 | . . . 6 7 1 1 . . 1 . . . . . . . . . . . . 1 2 . 5 3 . 4 . . . . Data Loss (major) 14 | . . . 8 1 . . . . . . . . . . . . . . . . . . 1 . 1 1 . 2 . . . . Misfires 11 | . . . 1 1 1 1 . 1 . . . . . . . . . . . . . . 1 . 3 1 . . 1 . . . Alerts 8 | . . . 3 1 . . . 1 . . . . . . . . . . . . . . . . 3 . . . . . . . Weapon Failures 6 | . . . 3 1 . . . . . 1 . . . . . . . . . . . . 1 . . . . . . . . . Overload Shots 52 | . . . . . . . . . 9 6 3 15 . . 1 . . . . . . 10 . 4 . . 4 . . . . . Effects 4 | . . . . . . . . . . . . 1 . . . . . . . . . 2 . . . . 1 . . . . . Energy Bleed 3 | . . . . . . . . . . . . 1 . . . . . . . . . 1 . . . . 1 . . . . . Short Circuit 1 | . . . . . . . . . . . . . . . . . . . . . . 1 . . . . . . . . . . Overflow Damage 766 | . . . 43 200 . . 25 78 13 . . . . . . . . . . . . . . 58 . . 43 160 . . 8 138 Projectiles . | . . . . . . . . . . . . . . . . . . . . . . . . . . . . . . . . . Explosions 114 | . . . . . . . . . 13 . . . . . . . . . . . . . . 58 . . 43 . . . . . Melee 652 | . . . 43 200 . . 25 78 . . . . . . . . . . . . . . . . . . . 160 . . 8 138 Knockbacks 4 | . . . . . . . 2 . . . . . . . . . . . . . . . . . . . 2 . . . . . Impact 2 | . . . . . . . 2 . . . . . . . . . . . . . . . . . . . . . . . . . Kinetic 2 | . . . . . . . . . . . . . . . . . . . . . . . . . . . 2 . . . . . Secondary . | . . . . . . . . . . . . . . . . . . . . . . . . . . . . . . . . . Self-Inflicted Damage 279 | . . . 3 28 . . . . 30 . . . . . . . . . . . . . . 31 . 51 136 . . . . . Shots 9 | . . . 1 2 . . . . 1 . . . . . . . . . . . . . . 1 . 1 3 . . . . . Rammed 13 | . . . . . . . . . . . . . . . . . . . . . . . . 2 . . . . . . 4 7 Targets Rammed 16 | . . . . . . . . . . . . . . . . . . . . . . . . 2 . . . . . . 7 7 Kicked . | . . . . . . . . . . . . . . . . . . . . . . . . . . . . . . . . . Crushed 3 | . . . . . . . . . . . . . . . . . . . . . . . . . . . . . . . 3 . Highest Temperature 415 | 80 249 144 306 269 89 9 189 252 380 305 268 296 . 149 182 308 110 308 242 . 199 364 415 401 275 368 166 199 199 . 188 200 Average Temperature 88 | 28 84 46 73 75 49 6 27 35 112 131 61 119 . 57 77 108 56 156 110 . 104 85 101 119 107 110 72 107 78 . 49 97 Received Heat Transfer 4576 | . 210 33 666 126 . . 206 244 663 216 6 . . 21 . . . . 234 . 302 45 572 185 44 227 21 198 35 . 97 225 Effects 14 | . . . 2 . . . . . 2 . . . . . . . . . 1 . . . . 5 1 3 . . . . . . Energy Bleed 5 | . . . 2 . . . . . . . . . . . . . . . 1 . . . . 1 1 . . . . . . . Interference 8 | . . . . . . . . . 2 . . . . . . . . . . . . . . 3 . 3 . . . . . . Damage (minor) 1 | . . . . . . . . . . . . . . . . . . . . . . . . 1 . . . . . . . . Siege Activations 43 | . . . . . . . . . . . . . . . . . . 1 5 . 4 2 5 3 . 2 1 6 5 . 7 2 Total Turns 662 | . . . . . . . . . . . . . . . . . . 12 70 . 46 21 141 46 . 41 8 51 86 . 124 16 Longest Duration 59 | . . . . . . . . . . . . . . . . . . 12 27 . 14 16 49 31 . 34 8 14 30 . 59 11 Robots Corrupted 3 | . . . . . . . 1 1 1 . . . . . . . . . . . . . . . . . . . . . . . Combat Hostiles 1 | . . . . . . . . . 1 . . . . . . . . . . . . . . . . . . . . . . . Parts Fried 11 | . . . . . . . 5 2 1 . . . . . . . . . . . . . 2 . . . . . . . 1 . Impact Corruptions 6 | . . . . . . . 2 3 . . . . . . . . . . . . . . . . . . . . . . 1 . Robots Melted 1 | . . . . . . . . . . . . . . . . . . . . . . . . . . . . 1 . . . . Combat Hostiles 1 | . . . . . . . . . . . . . . . . . . . . . . . . . . . . 1 . . . . Parts Melted 17 | . 4 1 7 . . . . . . . . 1 . . . . . . . . . 1 . . . . . 2 . . . 1 Heat Transferred 12978 | 149 3219 740 3034 . . . . . 74 . . 2616 . . . . . . . . . . 36 296 . 100 124 1998 444 . . 148 Parts Sabotaged 12 | . . . . . . . . . . 12 . . . . . . . . . . . . . . . . . . . . . . Parts Stolen . | . . . . . . . . . . . . . . . . . . . . . . . . . . . . . . . . . Parts Stripped . | . . . . . . . . . . . . . . . . . . . . . . . . . . . . . . . . . Power Chain Reactions 1 | . . . . . . . . . . . . . . . . . . . . . . . . . . 1 . . . . . . Alert | -11 -10 -10 -9 -9 -9 -8 -8 -8 -8 -8 -7 -7 -7 -7 -6 -6 -6 -6 -6 -6 -5 -5 -5 -4 -4 -4 -3 -2 -2 -1 -1 -1 ------- Run | Yrd Mat Min Mat Min Exi Min Mat Gar Mat Gar Fac Gar Fac Gar Fac Was Fac Low Low Dat Pro Fac Gar Fac Upp Upp Res Res Gar Acc Gar Acc Peak Influence 1541 | 10 304 206 836 419 . 10 769 987 1113 929 538 600 332 695 508 167 110 . . . . 287 862 855 . . 151 362 964 578 1541 1139 Initial 924 | . 6 81 20 321 . . 3 499 481 666 487 236 315 232 364 144 . . . . . 72 131 452 . . . 50 224 578 462 924 Average 451 | 4 162 141 421 209 . 8 229 823 862 820 463 338 321 544 375 105 24 . . . . 152 435 535 . . 24 99 696 578 1257 1017 Maximum Alert Level 4 | . 1 1 3 2 . . 3 3 4 3 2 2 1 2 2 . . . . . . 1 3 3 . . . 1 3 2 4 4 Low Security (%) 30 | 100 61 55 18 49 . 100 58 . . . . . . . . 100 100 . . . . 79 7 . . . 100 83 . . . . Level 1 20 | . 38 44 18 26 . . 24 . . . 22 63 100 26 77 . . . . . . 20 47 9 . . . 16 23 . . . Level 2 24 | . . . 50 24 . . 11 23 28 16 77 36 . 73 22 . . . . . . . 23 77 . . . . 21 100 8 . Level 3 19 | . . . 12 . . . 6 76 67 83 . . . . . . . . . . . . 22 12 . . . . 54 . 7 89 Level 4 4 | . . . . . . . . . 3 . . . . . . . . . . . . . . . . . . . . . 83 10 Level 5 . | . . . . . . . . . . . . . . . . . . . . . . . . . . . . . . . . . High Security . | . . . . . . . . . . . . . . . . . . . . . . . . . . . . . . . . . Max Security . | . . . . . . . . . . . . . . . . . . . . . . . . . . . . . . . . . Squads Dispatched 62 | . 4 . 7 . . . 7 . 10 . 2 . . . 2 . 1 . . . . 7 . 5 . 1 1 7 . . . 8 Investigation 17 | . 3 . 5 . . . 1 . 2 . . . . . . . 1 . . . . 3 . 1 . . . 1 . . . . Extermination 12 | . . . . . . . . . . . 1 . . . 1 . . . . . . 1 . 2 . . 1 4 . . . 2 Reinforcement 19 | . 1 . . . . . 3 . 4 . . . . . 1 . . . . . . 3 . 1 . . . 2 . . . 4 Assault 10 | . . . 2 . . . . . 4 . . . . . . . . . . . . . . 1 . 1 . . . . . 2 Garrison 4 | . . . . . . . 3 . . . 1 . . . . . . . . . . . . . . . . . . . . . Intercept . | . . . . . . . . . . . . . . . . . . . . . . . . . . . . . . . . . Searches Triggered . | . . . . . . . . . . . . . . . . . . . . . . . . . . . . . . . . . Data Miner Redirects 5 | . . . . . . . . . . . . . . . . . . . . . . 1 . 3 . . . . . . . 1 Construction Impeded 3 | . . . . . . . . . 1 . . . . . . . . . . . . 1 . . . . . . . . . 1 Haulers Reinforced 4 | . . . . . . . . . . . . . . . . . . . . . . 2 . . . . . . . . . 2 Active Scanning Responses . | . . . . . . . . . . . . . . . . . . . . . . . . . . . . . . . . . Cargo Convoy Interrupts 1 | . . . . . . . . . . . . . . . . . . . . . . . . . . . 1 . . . . . Alert ID Control Effect 11 | . . . . . . . . . . . . . . . . . . . . . . . . . . . . . 1 . 5 5 Stealth | -11 -10 -10 -9 -9 -9 -8 -8 -8 -8 -8 -7 -7 -7 -7 -6 -6 -6 -6 -6 -6 -5 -5 -5 -4 -4 -4 -3 -2 -2 -1 -1 -1 --------- Run | Yrd Mat Min Mat Min Exi Min Mat Gar Mat Gar Fac Gar Fac Gar Fac Was Fac Low Low Dat Pro Fac Gar Fac Upp Upp Res Res Gar Acc Gar Acc Distress Signals 20 | . . . 3 . . . 2 . 9 . . . . . . . . . . . . 1 . 3 . . . . . . . 2 Communications Jammed 1 | . . . . . . . . . . . . . . . . . . . . . . 1 . . . . . . . . . . Distress Signals . | . . . . . . . . . . . . . . . . . . . . . . . . . . . . . . . . . Times Spotted 640 | . 24 17 68 9 . 1 44 25 66 16 2 8 1 21 6 . 2 5 13 . 16 18 28 39 9 22 27 33 28 . 41 51 Peak Tracking Total 14 | . 3 4 9 3 . 1 11 8 9 8 1 4 1 6 3 . 1 4 4 . 5 4 7 8 4 11 14 6 6 . 10 14 Tactical Retreats 66 | . 2 3 7 1 . . 8 2 5 1 . 2 . 1 . . . 2 2 . 6 2 . 2 . 1 1 2 3 . 6 7 Traps | -11 -10 -10 -9 -9 -9 -8 -8 -8 -8 -8 -7 -7 -7 -7 -6 -6 -6 -6 -6 -6 -5 -5 -5 -4 -4 -4 -3 -2 -2 -1 -1 -1 ------- Run | Yrd Mat Min Mat Min Exi Min Mat Gar Mat Gar Fac Gar Fac Gar Fac Was Fac Low Low Dat Pro Fac Gar Fac Upp Upp Res Res Gar Acc Gar Acc Traps Triggered 33 | . 2 . 1 . . . . 3 . 6 . 3 . 1 2 . 1 . . . . . 4 2 . . . 1 2 . 5 . Indirectly . | . . . . . . . . . . . . . . . . . . . . . . . . . . . . . . . . . Trap Hack Attempts . | . . . . . . . . . . . . . . . . . . . . . . . . . . . . . . . . . Triggered . | . . . . . . . . . . . . . . . . . . . . . . . . . . . . . . . . . Disarmed . | . . . . . . . . . . . . . . . . . . . . . . . . . . . . . . . . . Reprogrammed . | . . . . . . . . . . . . . . . . . . . . . . . . . . . . . . . . . Reused 2 | . . . . . . . . . . . . . . . . . . . . . . 1 . . 1 . . . . . . . Traps Extracted . | . . . . . . . . . . . . . . . . . . . . . . . . . . . . . . . . . Installed 2 | . . . . . . . . . . . . . . . . . . . . . . 1 . . 1 . . . . . . . Triggered 3 | . . . . . . . . . . . . . . . . . . 1 . . . 1 . . 1 . . . . . . . Most Traps Carried 1 | . . . . . . . . . . . . . . . . . . . . . 1 1 . . 1 1 1 . . . . . Machines | -11 -10 -10 -9 -9 -9 -8 -8 -8 -8 -8 -7 -7 -7 -7 -6 -6 -6 -6 -6 -6 -5 -5 -5 -4 -4 -4 -3 -2 -2 -1 -1 -1 ---------- Run | Yrd Mat Min Mat Min Exi Min Mat Gar Mat Gar Fac Gar Fac Gar Fac Was Fac Low Low Dat Pro Fac Gar Fac Upp Upp Res Res Gar Acc Gar Acc Machines Disabled 32 | . . . 4 . . . 1 . 1 1 . 1 . 1 . . . . . . . 4 2 7 . 1 1 3 3 . 2 . Max in Single Turn 4 | . . . 1 . . . 1 . 1 1 . 1 . 1 . . . . . . . 1 1 4 . 1 1 1 1 . 1 . Garrison Relay 8 | . . . . . . . . . . 1 . 1 . 1 . . . . . . . . 1 . . . . . 2 . 2 . Machines Repaired . | . . . . . . . . . . . . . . . . . . . . . . . . . . . . . . . . . Machines Dismantled . | . . . . . . . . . . . . . . . . . . . . . . . . . . . . . . . . . Machines Sabotaged . | . . . . . . . . . . . . . . . . . . . . . . . . . . . . . . . . . Overloaded Fab Kills . | . . . . . . . . . . . . . . . . . . . . . . . . . . . . . . . . . Hacking | -11 -10 -10 -9 -9 -9 -8 -8 -8 -8 -8 -7 -7 -7 -7 -6 -6 -6 -6 -6 -6 -5 -5 -5 -4 -4 -4 -3 -2 -2 -1 -1 -1 --------- Run | Yrd Mat Min Mat Min Exi Min Mat Gar Mat Gar Fac Gar Fac Gar Fac Was Fac Low Low Dat Pro Fac Gar Fac Upp Upp Res Res Gar Acc Gar Acc Machines Accessed 93 | . 8 1 15 1 2 . 10 3 6 . 3 2 1 1 4 . 4 1 . 4 . 7 2 4 . . 1 8 2 1 2 . Terminals 55 | . 6 1 10 . . . 7 3 3 . . 2 . 1 2 . 2 . . . . 2 2 4 . . . 6 2 . 2 . Fabricators 5 | . . . . . . . . . . . . . . . 1 . 2 . . . . 1 . . . . . 1 . . . . Repair Stations 10 | . . . 2 . . . 1 . 1 . 2 . . . 1 . . . . . . 2 . . . . 1 . . . . . Recycling Units 3 | . 2 . 1 . . . . . . . . . . . . . . . . . . . . . . . . . . . . . Scanalyzers 4 | . . . 2 . . . 1 . 1 . . . . . . . . . . . . . . . . . . . . . . . Garrison Access 8 | . . . . . . . 1 . 1 . 1 . 1 . . . . . . . . 2 . . . . . 1 . 1 . . Total Hacks 256 | . 23 4 48 1 2 . 31 6 20 . 4 2 1 2 9 . 12 1 . 32 . 17 3 11 . . 1 18 3 1 4 . Successful 144 | . 13 1 25 1 2 . 17 3 10 . 3 1 1 . 5 . 6 1 . 32 . 9 1 3 . . . 7 2 1 . . Failed 111 | . 9 3 23 . . . 14 3 10 . 1 1 . 2 4 . 6 . . . . 8 2 8 . . 1 11 1 . 4 . Catastrophic 18 | . . 1 3 . . . 1 . 2 . . 1 . 1 . . . . . . . 1 . 3 . . . 4 . . 1 . Database Lockouts 1 | . 1 . . . . . . . . . . . . . . . . . . . . . . . . . . . . . . . Manual 113 | . 21 4 31 . 1 . 16 . 9 . . . . . 6 . 7 . . . . 8 . 8 . . . 2 . . . . Terminals 155 | . 21 4 34 . . . 22 6 10 . . 2 . 2 5 . 7 . . . . 7 3 11 . . . 14 3 . 4 . Fabricators 13 | . . . . . . . . . . . . . . . 2 . 5 . . . . 3 . . . . . 3 . . . . Repair Stations 23 | . . . 5 . . . 4 . 5 . 3 . . . 2 . . . . . . 3 . . . . 1 . . . . . Recycling Units 3 | . 2 . 1 . . . . . . . . . . . . . . . . . . . . . . . . . . . . . Scanalyzers 16 | . . . 8 . . . 4 . 4 . . . . . . . . . . . . . . . . . . . . . . . Garrison Access 10 | . . . . . . . 1 . 1 . 1 . 1 . . . . . . . . 4 . . . . . 1 . 1 . . Terminal Hacks 74 | . 2 1 3 1 2 . 6 3 5 . . 1 . . 2 . 2 1 . 32 . 2 1 3 . . . 5 2 . . . Record 12 | . . . . . 1 . . . . . . . . . . . . . . 11 . . . . . . . . . . . . Part Schematic 11 | . . . . . . . . . . . . . . . . . . . . 11 . . . . . . . . . . . . Robot Schematic 8 | . . 1 . . . . . . . . . . . . . . . . . 7 . . . . . . . . . . . . Robot Analysis 4 | . 1 . 1 . . . . . 2 . . . . . . . . . . . . . . . . . . . . . . . Prototype ID Bank 3 | . . . . . . . . . . . . . . . . . . . . 3 . . . . . . . . . . . . Open Door 2 | . . . . 1 . . . . . . . . . . . . . 1 . . . . . . . . . . . . . . Open DSF 1 | . . . . . . . . . . . . . . . . . . . . . . . . . . . . 1 . . . . Branch Access Points 3 | . . . . . . . . . . . . . . . 1 . 1 . . . . . . 1 . . . . . . . . Emergency Access Points 1 | . . . . . . . . 1 . . . . . . . . . . . . . . . . . . . . . . . . Terminal Index 6 | . . . . . . . 1 . . . . . . . 1 . 1 . . . . 1 . 1 . . . 1 . . . . Unreport Threat 4 | . . . 1 . . . . . 1 . . . . . . . . . . . . . . . . . . 2 . . . . Locate Traps 6 | . . . . . . . 1 . 2 . . . . . . . . . . . . 1 . 1 . . . 1 . . . . Hauler Manifests 2 | . . . 1 . . . 1 . . . . . . . . . . . . . . . . . . . . . . . . . Zone Layout 4 | . 1 . . . . . 3 . . . . . . . . . . . . . . . . . . . . . . . . . Garrison Registry 3 | . . . . . . . . 1 . . . 1 . . . . . . . . . . . . . . . . 1 . . . Patrol Navigation 2 | . . . . . . . . 1 . . . . . . . . . . . . . . . . . . . . 1 . . . Security Stations 1 | . . . . . . . . . . . . . . . . . . . . . . . 1 . . . . . . . . . Derelict Proto ID Bank 1 | . . . . . 1 . . . . . . . . . . . . . . . . . . . . . . . . . . . Fabricator Hacks 5 | . . . . . . . . . . . . . . . . . 1 . . . . 3 . . . . . 1 . . . . Network Status 2 | . . . . . . . . . . . . . . . . . 1 . . . . 1 . . . . . . . . . . Load Schematic 2 | . . . . . . . . . . . . . . . . . . . . . . 1 . . . . . 1 . . . . Build 1 | . . . . . . . . . . . . . . . . . . . . . . 1 . . . . . . . . . . Repair Station Hacks 14 | . . . 3 . . . 4 . 2 . 2 . . . 1 . . . . . . 2 . . . . . . . . . . Scan Component 9 | . . . 2 . . . 2 . 2 . 1 . . . 1 . . . . . . 1 . . . . . . . . . . Repair 5 | . . . 1 . . . 2 . . . 1 . . . . . . . . . . 1 . . . . . . . . . . Recycling Unit Hacks . | . . . . . . . . . . . . . . . . . . . . . . . . . . . . . . . . . Scanalyzer 10 | . . . 6 . . . 2 . 2 . . . . . . . . . . . . . . . . . . . . . . . Insert Component 5 | . . . 3 . . . 1 . 1 . . . . . . . . . . . . . . . . . . . . . . . Analyze 5 | . . . 3 . . . 1 . 1 . . . . . . . . . . . . . . . . . . . . . . . Garrison Access Hacks 7 | . . . . . . . 1 . 1 . 1 . 1 . . . . . . . . 1 . . . . . 1 . 1 . . Unlock Access 7 | . . . . . . . 1 . 1 . 1 . 1 . . . . . . . . 1 . . . . . 1 . 1 . . Unauthorized Hacks 34 | . 11 . 13 . . . 4 . . . . . . . 2 . 3 . . . . 1 . . . . . . . . . . Terminals 24 | . 9 . 12 . . . 3 . . . . . . . . . . . . . . . . . . . . . . . . . Botnet 6 | . 1 . 3 . . . 2 . . . . . . . . . . . . . . . . . . . . . . . . . Disrupt 1 | . . . 1 . . . . . . . . . . . . . . . . . . . . . . . . . . . . . Operators 6 | . 4 . 2 . . . . . . . . . . . . . . . . . . . . . . . . . . . . . Skim 11 | . 4 . 6 . . . 1 . . . . . . . . . . . . . . . . . . . . . . . . . Fabricators 5 | . . . . . . . . . . . . . . . 2 . 3 . . . . . . . . . . . . . . . Report 2 | . . . . . . . . . . . . . . . 1 . 1 . . . . . . . . . . . . . . . Fabnet 2 | . . . . . . . . . . . . . . . 1 . 1 . . . . . . . . . . . . . . . Haulers 1 | . . . . . . . . . . . . . . . . . 1 . . . . . . . . . . . . . . . Repair Stations . | . . . . . . . . . . . . . . . . . . . . . . . . . . . . . . . . . Recycling Units 3 | . 2 . 1 . . . . . . . . . . . . . . . . . . . . . . . . . . . . . Tunnel 3 | . 2 . 1 . . . . . . . . . . . . . . . . . . . . . . . . . . . . . Scanalyzers 1 | . . . . . . . 1 . . . . . . . . . . . . . . . . . . . . . . . . . Extract 1 | . . . . . . . 1 . . . . . . . . . . . . . . . . . . . . . . . . . Garrison Access 1 | . . . . . . . . . . . . . . . . . . . . . . 1 . . . . . . . . . . Reprogram 1 | . . . . . . . . . . . . . . . . . . . . . . 1 . . . . . . . . . . Data Cores Recovered 2 | . . . 1 . . . 1 . . . . . . . . . . . . . . . . . . . . . . . . . Used 1 | . . . 1 . . . . . . . . . . . . . . . . . . . . . . . . . . . . . Hacking Detections 71 | . 6 1 13 . . . 9 2 6 . 1 1 1 1 4 . 4 . . . . 6 1 4 . . 1 7 1 . 2 . Full Trace Events 11 | . . 1 3 . . . . . 2 . . . . . . . . . . . . 2 . 1 . . . 1 . . 1 . Feedback Events . | . . . . . . . . . . . . . . . . . . . . . . . . . . . . . . . . . Feedback Blocked . | . . . . . . . . . . . . . . . . . . . . . . . . . . . . . . . . . Robot Schematics Acquired 8 | . . 1 . . . . . . . . . . . . . . . . . 7 . . . . . . . . . . . . Robots Built . | . . . . . . . . . . . . . . . . . . . . . . . . . . . . . . . . . Authchips . | . . . . . . . . . . . . . . . . . . . . . . . . . . . . . . . . . Time . | . . . . . . . . . . . . . . . . . . . . . . . . . . . . . . . . . Total Robot Build Rating . | . . . . . . . . . . . . . . . . . . . . . . . . . . . . . . . . . Part Schematics Acquired 17 | . . . 3 . . . 2 . 1 . . . . . . . . . . 11 . . . . . . . . . . . . Parts Built 1 | . . . . . . . . . . . . . . . . . . . . . . 1 . . . . . . . . . . Authchips . | . . . . . . . . . . . . . . . . . . . . . . . . . . . . . . . . . Time 169 | . . . . . . . . . . . . . . . . . . . . . . 169 . . . . . . . . . . Total Part Build Rating 6 | . . . . . . . . . . . . . . . . . . . . . . 6 . . . . . . . . . . Parts Repaired 5 | . . . 1 . . . 2 . . . 1 . . . . . . . . . . 1 . . . . . . . . . . Time 193 | . . . 32 . . . 70 . . . 60 . . . . . . . . . . 31 . . . . . . . . . . Parts Recycled . | . . . . . . . . . . . . . . . . . . . . . . . . . . . . . . . . . Recycled Matter . | . . . . . . . . . . . . . . . . . . . . . . . . . . . . . . . . . Retrieved Matter . | . . . . . . . . . . . . . . . . . . . . . . . . . . . . . . . . . Retrieved Components . | . . . . . . . . . . . . . . . . . . . . . . . . . . . . . . . . . Parts Scanalyzed 5 | . . . 3 . . . 1 . 1 . . . . . . . . . . . . . . . . . . . . . . . Part Schematics Acquired 5 | . . . 3 . . . 1 . 1 . . . . . . . . . . . . . . . . . . . . . . . Parts Damaged . | . . . . . . . . . . . . . . . . . . . . . . . . . . . . . . . . . Bothacking | -11 -10 -10 -9 -9 -9 -8 -8 -8 -8 -8 -7 -7 -7 -7 -6 -6 -6 -6 -6 -6 -5 -5 -5 -4 -4 -4 -3 -2 -2 -1 -1 -1 ------------ Run | Yrd Mat Min Mat Min Exi Min Mat Gar Mat Gar Fac Gar Fac Gar Fac Was Fac Low Low Dat Pro Fac Gar Fac Upp Upp Res Res Gar Acc Gar Acc Used RIF Installer 7 | . . . . . . . . 1 . 1 . 1 . 1 . . . . . . . . 1 . . . . . 1 . 1 . Command Fork 1 | . . . . . . . . . . 1 . . . . . . . . . . . . . . . . . . . . . . Zone Cloak 1 | . . . . . . . . . . . . 1 . . . . . . . . . . . . . . . . . . . . Robot Detection 1 | . . . . . . . . . . . . . . . . . . . . . . . . . . . . . 1 . . . Watcher Feeds 1 | . . . . . . . . . . . . . . . . . . . . . . . . . . . . . . . 1 . Alert ID Control 1 | . . . . . . . . . . . . . . . . . . . . . . . 1 . . . . . . . . . Structural Interface 1 | . . . . . . . . . . . . . . 1 . . . . . . . . . . . . . . . . . . Robots Hacked 47 | . . . . . 6 . . . . . . . . 5 . . . . . 1 1 1 6 4 1 . . . 6 . 7 9 Non-combat 8 | . . . . . 3 . . . . . . . . . . . . . . . . . . 3 1 . . . . . . 1 Combat 39 | . . . . . 3 . . . . . . . . 5 . . . . . 1 1 1 6 1 . . . . 6 . 7 8 Robot Hacks Applied 46 | . . . . . 6 . . . . . . . . 5 . . . . . 1 . 1 4 4 1 . . . 6 . 9 9 parse_system 8 | . . . . . 6 . . . . . . . . . . . . . . 1 . . . . 1 . . . . . . . no_distress 1 | . . . . . . . . . . . . . . . . . . . . . . . . 1 . . . . . . . . drop_inventory 1 | . . . . . . . . . . . . . . . . . . . . . . . . . . . . . . . . 1 disrupt_area 4 | . . . . . . . . . . . . . . . . . . . . . . . . . . . . . 1 . 2 1 spike_heat 2 | . . . . . . . . . . . . . . . . . . . . . . . 1 . . . . . . . . 1 overload_power 1 | . . . . . . . . . . . . . . . . . . . . . . . . . . . . . . . 1 . disable_weapons 3 | . . . . . . . . . . . . . . 1 . . . . . . . . 1 . . . . . . . . 1 overwrite_iff 7 | . . . . . . . . . . . . . . 3 . . . . . . . . . . . . . . 1 . 3 . formatsys_low 2 | . . . . . . . . . . . . . . . . . . . . . . . . 2 . . . . . . . . formatsys_high 17 | . . . . . . . . . . . . . . 1 . . . . . . . 1 2 1 . . . . 4 . 3 5 Relay Couplers Released 39 | . . . . . . . . . . 4 . 4 . 5 . . . . . . . . 4 . . . . . 9 . 13 . Machine Destruction 35 | . . . . . . . . . . 4 . 4 . 5 . . . . . . . . 4 . . . . . 9 . 9 . Programmers 4 | . . . . . . . . . . . . . . . . . . . . . . . . . . . . . . . 4 . Attached 20 | . . . . . . . . . . . . 1 . 2 . . . . . . . 1 1 2 . . . . 3 . 4 6 Fabnet Peak Effective % 6 | . . . . . . . . . . . . . . . . . . . . . 6 6 6 2 2 2 . . . . . . Autooverrided 3 | . . . . . . . . . . . . . . . . . . . . . 1 . 2 . . . . . . . . . Robots Rewired 18 | . . . . . . . . 6 . . . . . . . . . . . . . . 9 . 1 2 . . . . . . Allies Hacked 1 | . . . . . . . . . . . . . . . . . . . . . . . . . . . . . . . 1 . Hacks Repelled . | . . . . . . . . . . . . . . . . . . . . . . . . . . . . . . . . . Allies | -11 -10 -10 -9 -9 -9 -8 -8 -8 -8 -8 -7 -7 -7 -7 -6 -6 -6 -6 -6 -6 -5 -5 -5 -4 -4 -4 -3 -2 -2 -1 -1 -1 -------- Run | Yrd Mat Min Mat Min Exi Min Mat Gar Mat Gar Fac Gar Fac Gar Fac Was Fac Low Low Dat Pro Fac Gar Fac Upp Upp Res Res Gar Acc Gar Acc Total Allies 63 | . . . . . . . . 6 . . . 2 . 7 . 1 . . . . 1 3 13 7 1 2 . . 6 . 9 5 Largest Group 7 | . . . . . . . . 6 . . . 2 1 3 3 1 1 1 . . 1 3 6 5 1 2 . . 5 5 7 2 Highest-Rated Group 509 | . . . . . . . . 75 . . . 175 80 207 207 95 95 95 . . 12 99 167 191 47 95 . . 380 375 509 267 Highest-Rated Ally 219 | . . . . . . . . 15 . . . 95 80 95 95 95 95 95 . . 12 41 54 137 47 48 . . 148 148 148 219 Total Orders 8 | . . . . . . . . . . . . . . . . . . . . . . . 1 1 3 . 1 . 2 . . . STAY 2 | . . . . . . . . . . . . . . . . . . . . . . . . . . . 1 . 1 . . . FOLLOW 1 | . . . . . . . . . . . . . . . . . . . . . . . . . . . . . 1 . . . AID 1 | . . . . . . . . . . . . . . . . . . . . . . . . 1 . . . . . . . . RETURN 4 | . . . . . . . . . . . . . . . . . . . . . . . 1 . 3 . . . . . . . Ally Attacks 446 | . . . . . . . . 20 18 . . 14 2 28 18 1 7 1 . . 3 33 38 30 42 30 . . 29 . 101 31 Total Damage 13640 | . . . . . . . . 407 919 . . 408 59 638 889 51 364 79 . . 38 502 511 754 608 1346 . . 945 . 3747 1375 Kills 88 | . . . . . . . . 2 9 . . 8 . 9 9 1 2 . . . . 4 3 2 4 5 . . 4 . 18 8 Allies Corrupted 1 | . . . . . . . . . . . . . . . . . . . . . . . . . . . . . . . 1 . Allies Melted 1 | . . . . . . . . . . . . . . 1 . . . . . . . . . . . . . . . . . . Turrets Deployed 3 | . . . . . 1 . . . 1 . . . . . . . . . . . . . . . . 1 . . . . . . Intel | -11 -10 -10 -9 -9 -9 -8 -8 -8 -8 -8 -7 -7 -7 -7 -6 -6 -6 -6 -6 -6 -5 -5 -5 -4 -4 -4 -3 -2 -2 -1 -1 -1 ------- Run | Yrd Mat Min Mat Min Exi Min Mat Gar Mat Gar Fac Gar Fac Gar Fac Was Fac Low Low Dat Pro Fac Gar Fac Upp Upp Res Res Gar Acc Gar Acc Robot Analysis Total 4 | . 1 . 1 . . . . . 2 . . . . . . . . . . . . . . . . . . . . . . . Derelict Logs Recovered 11 | . . 2 . 2 . . . . . . . . . . . . . 1 2 . 1 . . . 2 1 . . . . . . Drone Launches 28 | . . . . . . . . . . . . . . . . . . . . . . . 2 . 8 3 15 . . . . . Drone Recoveries 16 | . . . . . . . . . . . . . . . . . . . . . . . 2 . 6 . 8 . . . . . Exploration | -11 -10 -10 -9 -9 -9 -8 -8 -8 -8 -8 -7 -7 -7 -7 -6 -6 -6 -6 -6 -6 -5 -5 -5 -4 -4 -4 -3 -2 -2 -1 -1 -1 ------------- Run | Yrd Mat Min Mat Min Exi Min Mat Gar Mat Gar Fac Gar Fac Gar Fac Was Fac Low Low Dat Pro Fac Gar Fac Upp Upp Res Res Gar Acc Gar Acc Turns Passed 35690 | 108 1483 979 2920 1581 390 247 2369 1145 1872 777 513 854 91 951 730 625 235 796 1123 176 1778 1329 1575 1827 2381 946 420 2011 1102 33 1415 908 Spaces Moved 16569 | 54 660 551 1288 738 247 161 1240 430 560 260 153 284 52 450 432 345 143 479 626 109 776 658 716 861 956 278 136 1408 501 11 546 460 Core 438 | 8 . . . . . . . . . 1 . . . . . . . . . . . . . . . . 75 139 . . . 215 Treads 11760 | 46 660 551 339 184 . . 83 134 560 259 58 284 52 450 432 345 143 479 626 109 776 658 716 861 956 205 61 579 501 11 546 96 Legs 73 | . . . . . . . . . . . . . . . . . . . . . . . . . . 73 . . . . . . Wheels 3631 | . . . 949 554 247 161 1157 296 . . 95 . . . . . . . . . . . . . . . . 75 . . . 97 Hover 288 | . . . . . . . . . . . . . . . . . . . . . . . . . . . . 236 . . . 52 Flight 379 | . . . . . . . . . . . . . . . . . . . . . . . . . . . . 379 . . . . Fastest Speed 42 | 50 160 160 135 135 150 150 120 120 240 232 230 155 160 160 160 160 160 160 160 160 160 161 160 160 240 240 50 42 145 145 145 50 Average Speed 169 | 151 160 160 164 192 150 150 129 195 240 255 237 207 160 160 160 160 160 160 160 160 215 161 160 167 240 292 162 98 145 145 181 125 Slowest Speed 1350 | 200 160 160 320 320 150 150 240 320 240 1350 312 240 160 160 240 240 160 160 160 160 243 162 240 240 240 540 320 225 145 145 240 240 Overloaded Moves . | . . . . . . . . . . . . . . . . . . . . . . . . . . . . . . . . . Propulsion Burnouts . | . . . . . . . . . . . . . . . . . . . . . . . . . . . . . . . . . Robots Hopped 1 | . . . . . 1 . . . . . . . . . . . . . . . . . . . . . . . . . . . Cave-ins Triggered . | . . . . . . . . . . . . . . . . . . . . . . . . . . . . . . . . . Exploration Rate (%) 49 | 5 98 98 97 89 63 35 81 64 44 36 5 38 1 75 17 95 4 62 79 75 81 19 68 18 91 23 6 22 57 1 67 15 Regions Visited 32 Branch Regions 10 Pre-discovered Areas 10 | . 2 . 2 3 1 . . . . . . . . . . . . . . 1 1 . . . . . . . . . . . Known Exits Taken 12 | . . . 1 . . 1 1 . 1 . 1 . 1 . . . 1 . . . . 1 . 1 . . 1 1 . 1 . . Unknown Exits Taken 11 | 1 1 1 . 1 1 . . . . . . . . . . . . 1 1 1 1 . . . 1 1 . . . . . . Scrap Searched 16 | . . 2 . 2 . . . . . . . . . . . . . 2 3 . 2 . . . 4 1 . . . . . . Spaces Dug 91 | . 2 . 10 4 . . 15 4 12 1 3 9 . . 1 . . . . . . 10 1 4 . . 3 7 4 . . 1 Terrain Destroyed 377 | . 2 . 10 20 . . 15 4 55 3 4 9 . 1 1 4 1 . 12 . 13 21 25 46 24 41 24 19 10 . 11 2 Melee 40 | . . . 5 4 . . 15 4 . . . . . . . . . . . . . . . . . . . 7 4 . . 1 Projectile 171 | . 2 . 5 . . . . . 15 3 4 9 . 1 1 4 1 . 12 . 13 21 24 21 1 . 4 12 6 . 11 1 AOE 163 | . . . . 16 . . . . 40 . . . . . . . . . . . . . . 23 23 41 20 . . . . . Terrain Rammed . | . . . . . . . . . . . . . . . . . . . . . . . . . . . . . . . . . Walls Destroyed . | . . . . . . . . . . . . . . . . . . . . . . . . . . . . . . . . . Machines Disabled . | . . . . . . . . . . . . . . . . . . . . . . . . . . . . . . . . . Actions | -11 -10 -10 -9 -9 -9 -8 -8 -8 -8 -8 -7 -7 -7 -7 -6 -6 -6 -6 -6 -6 -5 -5 -5 -4 -4 -4 -3 -2 -2 -1 -1 -1 --------- Run | Yrd Mat Min Mat Min Exi Min Mat Gar Mat Gar Fac Gar Fac Gar Fac Was Fac Low Low Dat Pro Fac Gar Fac Upp Upp Res Res Gar Acc Gar Acc Total 21653 | 68 929 600 1806 830 264 162 1787 605 928 334 286 461 60 644 468 408 147 503 712 110 841 863 967 1068 1016 361 321 1850 764 28 824 638 Wait 2407 | . 152 14 224 37 . . 362 32 219 11 99 54 . 136 14 18 1 14 56 . 33 103 71 87 24 25 139 181 147 17 109 28 Move 16542 | 53 659 550 1287 737 244 160 1240 429 560 259 153 283 52 449 432 344 142 478 625 108 775 658 715 860 955 277 135 1408 499 11 545 460 Hop 1 | . . . . . 1 . . . . . . . . . . . . . . . . . . . . . . . . . . . Pick Up 265 | 4 15 2 44 2 4 . 17 14 10 4 3 5 2 3 3 6 1 1 1 . 2 13 10 3 6 . 1 46 12 . 25 6 Fast Attach 213 | 6 2 . 15 4 . . 14 10 8 14 9 5 2 3 5 10 . 2 1 . 1 9 13 3 4 7 7 37 5 . 6 11 Attach 158 | . . 3 11 3 2 . 2 5 5 5 1 . . 1 1 1 . . 1 . 1 6 7 8 3 6 7 27 6 . 19 27 Detach 48 | . . . 3 . 2 . . 1 2 1 . . . 1 . . . . . . . 2 2 4 3 3 3 16 . . . 5 Swap 281 | . 10 2 38 9 2 . 25 16 16 5 1 5 . 7 5 . . . 1 1 4 18 23 22 2 2 2 14 18 . 24 9 Drop 347 | . 12 1 49 4 3 . 28 19 18 5 8 13 4 6 6 18 1 3 1 . 2 19 22 7 2 6 14 38 14 . 16 8 Fire 1195 | 5 79 28 127 20 . 2 80 53 90 27 12 92 . 38 2 11 2 5 26 1 23 34 88 72 16 23 13 49 54 . 66 57 Melee 126 | . . . 8 14 6 . 19 18 . . . . . . . . . . . . . . . . . . . 34 8 . . 19 Ram 2 | . . . . . . . . . . . . . . . . . . . . . . . . . . . . . . . . 2 Kick . | . . . . . . . . . . . . . . . . . . . . . . . . . . . . . . . . . Crush 14 | . . . . . . . . . . . . . . . . . . . . . . . . 2 . . . . . . 7 5 Escape Stasis 22 | . . . . . . . . 8 . 3 . 4 . . . . . . . . . . . . . . . . . . 7 . Rewire 30 | . . . . . . . . . . . . . . . . . . . . . . . 16 . . 12 . . 1 . . 1 Trap 2 | . . . . . . . . . . . . . . . . . . . . . . 1 . . 1 . . . . . . . Miscellaneous . | . . . . . . . . . . . . . . . . . . . . . . . . . . . . . . . . . Route ------- -11/Scrapyard -10/Materials (discovered 5 exits: *Mat x3 / *Min x2) -10/Mines (discovered 2 exits: *Mat x2) -9/Materials (discovered 5 exits: *Mat x3 / *Min x2) -9/Mines (discovered 4 exits: Mat x2 / *Exi / [*Zio]) -9/Exiles -8/Mines (discovered 2 exits: *Mat x2) -8/Materials (discovered 6 exits: *Fac x3 / *Sto x2 / Gar) -8/Garrison (discovered 4 exits: *Mat x4) -8/Materials (discovered 3 exits: *Fac / *Sto / Gar) -8/Garrison -7/Factory -7/Garrison (discovered 4 exits: *Fac x4) -7/Factory -7/Garrison (discovered 3 exits: *Fac x3) -6/Factory (discovered 3 exits: *Fac / Low x2) -6/Waste -6/Factory (discovered 2 exits: *Low x2) -6/Lower Caves -6/Lower Caves -6/Data Miner -5/Proximity Caves -5/Factory (discovered 2 exits: Upp / Gar) -5/Garrison (discovered 2 exits: *Fac x2) -4/Factory (discovered 3 exits: *Res / *Upp x2) -4/Upper Caves -4/Upper Caves -3/Research (discovered 3 exits: *Res x2 / Tes) -2/Research -2/Garrison (discovered 3 exits: *Acc x3) -1/Access -1/Garrison (discovered 2 exits: [*Acc x2]) -1/Access History --------- Turn | Location | Event 10 | -11/Scrapyard | Discovered new exit (range 15) 109 | -11/Scrapyard | Entered Materials 317 | -10/Materials | Build established: Mutant 683 | -10/Materials | Discovered new exit (range 8) 710 | -10/Materials | Discovered new exit (range 10) 950 | -10/Materials | Discovered new exit (range 7) 1150 | -10/Materials | Discovered new exit (range 4) 1236 | -10/Materials | Central database locked down 1381 | -10/Materials | Discovered new exit (range 3) 1592 | -10/Materials | Entered Mines 1593 | -10/Mines | Assembled infested the area 1598 | -10/Mines | Assisted by a Guerilla fighting off Assembled 1774 | -10/Mines | Discovered new exit (range 9) 2201 | -10/Mines | Discovered new exit (range 6) 2571 | -10/Mines | Entered Materials 2571 | -9/Materials | Evolved 2 slots: Utility x1, Weapon x1 2572 | -9/Materials | Identified exit to Mines 2816 | -9/Materials | Repaired Hrd. Light Armor Plating 3292 | -9/Materials | Build established: Scavenger-Tank 3869 | -9/Materials | Build established: Gunner 4205 | -9/Materials | Discovered new exit (range 16) 4498 | -9/Materials | Discovered new exit (range 15) 4817 | -9/Materials | Identified exit to Materials 4817 | -9/Materials | Learned location of 2 exits from Materials 4947 | -9/Materials | Learned location of Zion (-7) 4998 | -9/Materials | Learned Storage emergency access door positions 5038 | -9/Materials | Learned 2 Storage zone layouts 5069 | -9/Materials | Learned location of 2 exits from Materials 5110 | -9/Materials | Learned 2 Storage zone layouts 5134 | -9/Materials | Core integrity fell below 50% 5371 | -9/Materials | First assault squad dispatched 5491 | -9/Materials | Entered Mines 5825 | -9/Mines | Build established: Mutant 6368 | -9/Mines | Deemed a non-threat by the Exiles lab entrance 6369 | -9/Mines | Discovered new exit (range 5) 6397 | -9/Mines | Found the Drone Emporium 6404 | -9/Mines | Found Prototype Device 6405 | -9/Mines | Identified Sensor Drone Bay 6430 | -9/Mines | A Derelict revealed a hidden shortcut to a safe place 6814 | -9/Mines | Build established: Gunner 6859 | -9/Mines | Learned location of Recycling (-8) 6931 | -9/Mines | Learned location of Storage (-8) 7072 | -9/Mines | Entered Exiles 7116 | -9/Exiles | Met 8R-AWN 7138 | -9/Exiles | Met EX-HEX 7185 | -9/Exiles | Met EX-BIN 7203 | -9/Exiles | Aligned with FarCom system 7204 | -9/Exiles | Given EX-Vault access code 7239 | -9/Exiles | Opened EX-Vault 7247 | -9/Exiles | DAS Turret deployed 7252 | -9/Exiles | Found Deploy-a-Sentry 7254 | -9/Exiles | Found Deploy-a-Sentry 7288 | -9/Exiles | Warned to stay clear of 0b10 Research branches 7329 | -9/Exiles | Met EX-DEC 7366 | -9/Exiles | Build established: Mutant 7444 | -9/Exiles | Discovered new exit (range 14) 7462 | -9/Exiles | Left Exiles lab with Deploy-a-Sentry 7462 | -9/Exiles | Entered Mines 7709 | -8/Mines | Entered Materials 7709 | -8/Materials | Evolved 2 slots: Propulsion x1, Weapon x1 7710 | -8/Materials | Identified exit to Storage 7711 | -8/Materials | Identified exit to Factory 7769 | -8/Materials | Build established: Skirmisher 7807 | -8/Materials | Repaired Arm. Wheel 7846 | -8/Materials | Repaired Hrd. Medium Armor Plating 9671 | -8/Materials | Garrison activated, responded to threat 9738 | -8/Materials | Destroyed 8 combat bots 10078 | -8/Materials | Identified exit to Garrison 10078 | -8/Materials | Entered Garrison 10108 | -8/Garrison | Triggered checkpoint 10176 | -8/Garrison | Triggered checkpoint 10504 | -8/Garrison | Triggered checkpoint 10518 | -8/Garrison | Triggered checkpoint 10560 | -8/Garrison | Lost 6 allies 10574 | -8/Garrison | Lost 3 parts (1p1u1w) 10771 | -8/Garrison | Discovered new exit (range 15) 10786 | -8/Garrison | Discovered new exit (range 12) 10786 | -8/Garrison | Discovered new exit (range 73) 10786 | -8/Garrison | Discovered new exit (range 69) 10786 | -8/Garrison | Discovered new exit (range 50) 10867 | -8/Garrison | Core integrity fell below 50% 10973 | -8/Garrison | Installed Relay Interface Framework 11223 | -8/Garrison | Entered Materials 11623 | -8/Materials | First assault squad dispatched 11813 | -8/Materials | Destroyed 7 combat bots 12029 | -8/Materials | Discovered exit to Storage (range 13) 12081 | -8/Materials | DAS Turret deployed 12147 | -8/Materials | Lost 3 parts (1u2w) 12444 | -8/Materials | Discovered exit to Factory (range 12) 13095 | -8/Materials | Identified exit to Garrison 13095 | -8/Materials | Entered Garrison 13289 | -8/Garrison | Triggered checkpoint 13290 | -8/Garrison | Triggered checkpoint 13537 | -8/Garrison | Discovered exit to Factory (range 10) 13674 | -8/Garrison | Expanded RIF knowledge: Command Fork 13746 | -8/Garrison | Garrison Relay disabled 13872 | -8/Garrison | Entered Factory 13872 | -7/Factory | Evolved 2 slots: Propulsion x1, Utility x1 14060 | -7/Factory | Build established: Bothacker-Skirmisher 14147 | -7/Factory | Repaired Enh. Autogun 14198 | -7/Factory | Garrison activated, responded to threat 14385 | -7/Factory | Identified exit to Garrison 14385 | -7/Factory | Entered Garrison 14495 | -7/Garrison | Expanded RIF knowledge: Zone Cloak 14545 | -7/Garrison | Discovered new exit (range 77) 14545 | -7/Garrison | Discovered new exit (range 42) 14545 | -7/Garrison | Discovered new exit (range 68) 14545 | -7/Garrison | Discovered new exit (range 19) 14637 | -7/Garrison | Triggered checkpoint 14752 | -7/Garrison | Found embedded Infiltrators 15127 | -7/Garrison | Garrison Relay disabled 15239 | -7/Garrison | Entered Factory 15239 | -7/Factory | Accompanied by 1 ally 15330 | -7/Factory | Identified exit to Garrison 15330 | -7/Factory | Entered Garrison 15330 | -7/Garrison | Accompanied by 1 ally 15367 | -7/Garrison | Triggered checkpoint 15570 | -7/Garrison | Triggered checkpoint 15621 | -7/Garrison | Lost 4 allies 15669 | -7/Garrison | Build established: Skirmisher 15704 | -7/Garrison | Discovered new exit (range 10) 15762 | -7/Garrison | Triggered checkpoint 15787 | -7/Garrison | Garrison Relay disabled 15912 | -7/Garrison | Triggered checkpoint 15995 | -7/Garrison | Expanded RIF knowledge: Structural Interface 16016 | -7/Garrison | Triggered checkpoint 16073 | -7/Garrison | Discovered new exit (range 15) 16080 | -7/Garrison | Found embedded Infiltrators 16085 | -7/Garrison | Build established: Bothacker-Skirmisher 16201 | -7/Garrison | Triggered checkpoint 16260 | -7/Garrison | Discovered new exit (range 7) 16281 | -7/Garrison | Entered Factory 16281 | -6/Factory | Accompanied by 3 allies 16281 | -6/Factory | Evolved 2 slots: Utility x2 16599 | -6/Factory | Discovered new exit (range 11) 16844 | -6/Factory | Identified exit to Lower Caves 17011 | -6/Factory | Sucked down chute 17011 | -6/Factory | Entered Waste 17011 | -6/Waste | The area was eerily silent 17011 | -6/Waste | Met up with 1 ally sucked down the chute earlier 17150 | -6/Waste | Build established: Hacker-Skirmisher 17358 | -6/Waste | Found Damper Plating 17510 | -6/Waste | Discovered new exit (range 12) 17531 | -6/Waste | Found Damper Plating 17636 | -6/Waste | Entered Factory 17636 | -6/Factory | Accompanied by 1 ally 17871 | -6/Factory | Entered Lower Caves 17871 | -6/Lower Caves | Accompanied by 1 ally 18175 | -6/Lower Caves | Build established: Hacker-Gunner 18501 | -6/Lower Caves | Discovered new exit (range 13) 18632 | -6/Lower Caves | Learned 4 Factory zone layouts 18667 | -6/Lower Caves | Entered another Lower Caves area 18837 | -6/Lower Caves | Attracted the attention of an 0b10 checkpoint 18936 | -6/Lower Caves | Learned location of 1 exit from Factory 19158 | -6/Lower Caves | Learned Factory interactive machine intel 19324 | -6/Lower Caves | Build established: Gunner 19377 | -6/Lower Caves | Spotted B-75 Beast 19577 | -6/Lower Caves | Discovered new exit (range 14) 19790 | -6/Lower Caves | Entered Data Miner 19790 | -6/Data Miner | Discovered new exit (range 6) 19821 | -6/Data Miner | Met Data Miner 19870 | -6/Data Miner | Learned location of Section 7 (-2) 19870 | -6/Data Miner | Acquired the access code to Warlord's prototype stash 19923 | -6/Data Miner | Received God Mode back door access code from Data Miner 19966 | -6/Data Miner | Entered Proximity Caves 19998 | -5/Proximity Caves | Attracted the attention of an 0b10 checkpoint 20389 | -5/Proximity Caves | Spotted B-75 Beast 20413 | -5/Proximity Caves | Destroyed B-75 Beast 20986 | -5/Proximity Caves | Discovered new exit (range 11) 21744 | -5/Proximity Caves | Entered Factory 21744 | -5/Factory | Evolved 2 slots: Propulsion x2 21745 | -5/Factory | Identified exit to Upper Caves 21747 | -5/Factory | Loaded intel: 53 interactive machine locations 22285 | -5/Factory | Incoming investigation squad redirected 22302 | -5/Factory | Build established: Scavenger-Skirmisher 22307 | -5/Factory | Found Prototype Launcher 22307 | -5/Factory | Identified Mni. Smartbomb Launcher 22481 | -5/Factory | Repaired Imp. Heavy Treads 22523 | -5/Factory | Fabricated Combat Drone Bay? 22943 | -5/Factory | Build established: Hacker-Skirmisher 23073 | -5/Factory | Identified exit to Garrison 23073 | -5/Factory | Entered Garrison 23301 | -5/Garrison | Triggered checkpoint 23425 | -5/Garrison | Lost 6 allies 23443 | -5/Garrison | Expanded RIF knowledge: Alert ID Control 23512 | -5/Garrison | Garrison Relay disabled 23635 | -5/Garrison | Triggered checkpoint 23685 | -5/Garrison | Triggered checkpoint 23803 | -5/Garrison | Build established: Scavenger-Skirmisher 23805 | -5/Garrison | Triggered checkpoint 23970 | -5/Garrison | Triggered checkpoint 23976 | -5/Garrison | Spotted B-75 Beast 23996 | -5/Garrison | Destroyed B-75 Beast 24006 | -5/Garrison | Lost 4 allies 24123 | -5/Garrison | Triggered checkpoint 24177 | -5/Garrison | Build established: Scavenger-Tank 24220 | -5/Garrison | Discovered new exit (range 10) 24347 | -5/Garrison | Triggered checkpoint 24415 | -5/Garrison | Learned Factory security intel 24441 | -5/Garrison | Spotted B-75 Beast 24480 | -5/Garrison | Destroyed B-75 Beast 24531 | -5/Garrison | Local machine network offline 24596 | -5/Garrison | Discovered new exit (range 10) 24648 | -5/Garrison | Entered Factory 24648 | -4/Factory | Evolved 2 slots: Utility x1, Weapon x1 24753 | -4/Factory | Build established: Scavenger-Gunner 24801 | -4/Factory | Found Prototype Processor 24801 | -4/Factory | Identified Exp. Signal Interpreter 24974 | -4/Factory | Incoming investigation squad redirected 25352 | -4/Factory | Discovered new exit (range 7) 25648 | -4/Factory | First assault squad dispatched 25667 | -4/Factory | Incoming assault squad redirected 25816 | -4/Factory | Allied Derelicts emerged from ambush trap array 25984 | -4/Factory | Lost 4 allies 26006 | -4/Factory | Identified exit to Upper Caves 26171 | -4/Factory | P-70 Sage assimilated allied Processor 7a 26188 | -4/Factory | Incoming assault squad redirected 26276 | -4/Factory | Lost 3 parts (1n2w) 26475 | -4/Factory | Entered Upper Caves 26475 | -4/Upper Caves | Accompanied by 1 ally 26676 | -4/Upper Caves | Learned 8 Research zone layouts 26846 | -4/Upper Caves | Build established: Tank 27781 | -4/Upper Caves | Learned location of 2 exits from Research 27794 | -4/Upper Caves | Build established: Scavenger-Tank 28315 | -4/Upper Caves | Discovered new exit (range 10) 28856 | -4/Upper Caves | Entered another Upper Caves area 28856 | -4/Upper Caves | Accompanied by 1 ally 28873 | -4/Upper Caves | Discovered new exit (range 8) 29062 | -4/Upper Caves | Learned Research garrison access intel 29179 | -4/Upper Caves | Attracted the attention of an 0b10 outpost 29181 | -4/Upper Caves | DAS Turret deployed 29277 | -4/Upper Caves | Lost 3 parts (1n1u1w) 29614 | -4/Upper Caves | Spotted B-86 Titan 29673 | -4/Upper Caves | Lost 6 parts (1p1n2u2w) 29802 | -4/Upper Caves | Entered Research 29802 | -3/Research | Accompanied by 1 ally 29802 | -3/Research | Evolved 2 slots: Utility x1, Weapon x1 29803 | -3/Research | Identified exit to Testing 29803 | -3/Research | Identified exit to Research 29805 | -3/Research | Loaded intel: 2 garrison access locations 30155 | -3/Research | Cargo convoy interrupted 30157 | -3/Research | Spotted Executioner 30197 | -3/Research | Core integrity fell below 50% 30220 | -3/Research | Lost 7 allies 30222 | -3/Research | Entered another Research area 30222 | -2/Research | Evolved 2 slots: Power x1, Utility x1 30232 | -2/Research | Lost 7 parts (2n3u2w) 30271 | -2/Research | Found Gamma Bomb Array 30758 | -2/Research | Build established: Scavenger-Mutant 30950 | -2/Research | Found Prototype Hackware 31229 | -2/Research | Identified Exp. System Shield 31345 | -2/Research | Build established: Scavenger-Executioner 31908 | -2/Research | Destroyed 7 combat bots 32185 | -2/Research | Found Unknown Device 32185 | -2/Research | Identified Adv. Force Booster 32233 | -2/Research | Identified exit to Garrison 32233 | -2/Research | Entered Garrison 32477 | -2/Garrison | Triggered checkpoint 32551 | -2/Garrison | Garrison Relay disabled 32660 | -2/Garrison | Triggered checkpoint 32719 | -2/Garrison | Spotted B-90 Cyclops 32731 | -2/Garrison | Assimilated Cyclops 9a with formatsys_high 32761 | -2/Garrison | Lost 3 parts (1p1u1w) 32769 | -2/Garrison | Triggered checkpoint 32896 | -2/Garrison | Garrison Relay disabled 32913 | -2/Garrison | Triggered checkpoint 32938 | -2/Garrison | Discovered new exit (range 85) 32938 | -2/Garrison | Discovered new exit (range 13) 32938 | -2/Garrison | Discovered new exit (range 53) 32960 | -2/Garrison | Spotted B-90 Cyclops 33198 | -2/Garrison | Build established: Bothacker-Executioner 33209 | -2/Garrison | Expanded RIF knowledge: Robot Detection 33335 | -2/Garrison | Entered Access 33335 | -1/Access | Accompanied by 5 allies 33335 | -1/Access | Evolved 2 slots: Power x1, Utility x1 33368 | -1/Access | Identified exit to Garrison 33368 | -1/Access | Entered Garrison 33368 | -1/Garrison | Accompanied by 5 allies 33422 | -1/Garrison | Triggered checkpoint 33477 | -1/Garrison | Garrison Relay disabled 33606 | -1/Garrison | Spotted B-99 Colossus 33720 | -1/Garrison | Lost 7 allies 33820 | -1/Garrison | Destroyed B-99 Colossus 33999 | -1/Garrison | Destroyed 7 combat bots 34014 | -1/Garrison | Triggered checkpoint 34052 | -1/Garrison | Rescued a captive Derelict 34053 | -1/Garrison | Rescued a captive Derelict 34082 | -1/Garrison | Discovered new exit (range 21) 34111 | -1/Garrison | Spotted B-99 Colossus 34180 | -1/Garrison | Allies destroyed B-99 Colossus 34209 | -1/Garrison | Lost 18 parts (3p4n4u7w) 34354 | -1/Garrison | Triggered checkpoint 34441 | -1/Garrison | Garrison Relay disabled 34534 | -1/Garrison | Triggered checkpoint 34672 | -1/Garrison | Discovered new exit (range 13) 34725 | -1/Garrison | Expanded RIF knowledge: Watcher Feeds 34735 | -1/Garrison | Build established: Botlord-Executioner 34783 | -1/Garrison | Entered Access 35042 | -1/Access | Lost 3 parts (3w) 35134 | -1/Access | Spotted B-99 Colossus 35283 | -1/Access | First assault squad dispatched 35308 | -1/Access | Incoming assault squad redirected 35357 | -1/Access | P-80 Master assimilated allied Terminator 10a 35418 | -1/Access | Core integrity fell below 50% 35448 | -1/Access | Core integrity fell below 20% 35448 | -1/Access | Assimilated Colossus 10a with formatsys_high 35481 | -1/Access | Lost 25 parts (6p5n3u11w) 35691 | -1/Access | Destroyed by S-43 Plague with Heavy Machine Gun Last Messages --------------- 35607_ Drone sends a signal. 35628_ Slug penetrates Wall. 35658_ Dropped Enh. Force Lance. 35658_ Dropped Quantum Reactor. 35659_ Acquired Enh. Force Lance. 35665_ C-30 ARC bursts open, deploying its payload. 35665_ S-43 Plague unfolds itself. 35665_ RIF reveals location of hidden door. 35667_ Slug penetrates Wall. 35668_ Acquired Unknown Ballistic Gun. 35668_ Identified Hyp. Railgun. 35669_ Dropped Mak. ECM Suite. 35672_ Slug penetrates Wall. 35675_ Acquired Imp. Heavy Siege Treads. 35678_ Enh. Force Lance destroyed. 35684_ HV Slug penetrates S-43 Plague. 35686_ Slammed into S-43 Plague. 35687_ Penetrated by Slug. 35688_ Slammed into S-43 Plague. 35690_ Penetrated by Slug. Map ----- +----------------------------------------------------+ | ##### #????????# ! | | ########## ! | | ### ##### # ! | | #?# #???# ^ # | | """"" """"" ###+#####+# # | | """""""" """""""" # # + | | """""""" """""""" # # # | | """"" """"" # ""G"" # # | | # " " # # | | + " " + ### | | # # #?# | | # # #?# | | ##### # # #?#### | | #???# ##+######## ###### | | #???# # | | ##### #???# " # | | ????# #???# "%" ] # " | | ????### ########???### #####" !! #""" | | ??????# ?????????????# #???# ! # """ | | ??????# ?????????????# #???# ! # " | | ??????+ ??????????#?? ???# + | | ??????????????????? s ???#### # | | ????????????????g???# s???######+###### # | | ???????????????????###/#### ! # ###### | | ???????????????????# # h/ # | | ???????????????????# s@s h ####+##### # | | ???????????????????# =!!s# # #?# # | | ???????????????????#= =!! # *** !# #?# # | | ???????????????????# !!! #= ** ! # #?# # | | ???????????????????# # ** # #?# # | | ???????????????????#################### ### # | | ??????????????????????????????????????# " | | ??????????????????????????????????????######## * | | ?????????????????????????????????????????????# | | ?????????????????????????????????????????????# | | ?????????????????????????????????????????????# | | ?????????????????????????????????????????????###+# | | ?????????????????????????????????????????????? | | ????????????????????????????????????????????# | | ????????????????????????????????????????????# | | ????????????????????????????????????????????# | | ????????????????????????????????????????????# | | ????????????????????????????????????????????# ! | | ????????????????????????????????????????????# ! | | ????????????????????????????????????????????# | | ????????????????????????????????????????????# | | ????????????????????????????????????????????###### | | ?????????????????????????????????????????????????? | | ?????????????????????????????????????????????????? | | ?????????????????????????????????????????????????? | +----------------------------------------------------+ Best States ------------- Heat Dissipation 102 Coolant Potential 200 Energy Generation 65 Energy Capacity 690 Matter Stores 300 Matter Capacity 300 Sight Range 22 Terrain Scan Density 10 ECM Strength 2 Jamming Range 12 EM Shielding 3 Corruption Block 19 Armor Coverage 3200 Resistance: EM 90 Core Shielding 20 Utility Shielding 66 Evasion (%) 69 Targeting Accuracy 8 Target Analysis 12 Armor Integrity Analysis 40 Recoil Reduction 6 Offensive Hacking 24 Defensive Hacking 16 Relay Coupler Types 4 Relay Coupler Value 102 Authchip Count 2 Item Schematics ----------------- Transport Network Coupler | -9/Materials | Scanalyzed Seismic Detector | -9/Materials | Scanalyzed Datajack | -9/Materials | Scanalyzed Hardlight Generator | -8/Materials | Scanalyzed Imp. Aluminum Leg | -8/Materials | Extracted Hacking Suite | -8/Materials | Scanalyzed Combat Drone Bay | -6/Data Miner | Free Lgt. Regenerative Plating | -6/Data Miner | Free Cld. Nuclear Pulse Thruster | -6/Data Miner | Free Imp. Matter Compressor | -6/Data Miner | Free Neutron Cannon | -6/Data Miner | Free Adv. VSS Leg | -6/Data Miner | Free Adv. Power Amplifier | -6/Data Miner | Free Phase Gun | -6/Data Miner | Free Hvy. Phase Cannon | -6/Data Miner | Free Imp. Linear Gravjet | -6/Data Miner | Free Adv. Weapon Cycler | -6/Data Miner | Free Robot Schematics ------------------ O-16 Technician | -10/Mines | Hacked B-60 Warrior | -6/Data Miner | Free G-50 Soldier | -6/Data Miner | Free S-27 Virus | -6/Data Miner | Free A-15 Conveyor | -6/Data Miner | Free E-15 Imp | -6/Data Miner | Free H-66 Slayer | -6/Data Miner | Free R-10 Processor | -6/Data Miner | Free Fabricated ------------ Combat Drone Bay | x1 | -5/Factory Alien Tech Used ----------------- None Achievements -------------- None Challenges ------------ None Game ------ Seed HeavySpacefoldLink Manual? 0 Play Time 05:47:22 Cumulative 186.4 hours Start 2025.03.16 @ 15:02:54 End 2025.03.17 @ 01:29:52 Sessions 11 Manual Loads 0 Difficulty Rogue Special Mode None Game No. 91 Rogue 91 Adventurer 0 Explorer 0 Win Type - Total 0 Types 0/0/0/0/0/0/0/0/0 Lore% 53 Gallery% 71 Achievement% 57 Wizard Run 0 Options --------- Layout 0 ASCII 0 Keyboard 0 Movement Mouse Keybinds 0 Fullscreen 1 Font 24/Smallcaps Map View 183x50 Zoom Use 0% Tactical HUD 1 Map Filters NONE Filters NONE Steam 0 RUN: 2a1cd408-5e6b-44e5-ba71-851be9554c82